fUST/lending_fUST_20240914
["ID","MTS","AMOUNT","RATE_DAILY","PERIOD"]
[338151336,1726315651289,-500.0,0.00044383,120]
[338151337,1726315651328,-500.0,0.00044383,120]
[338151338,1726315651364,-684.28,0.00044383,120]
[338151339,1726315651399,-500.0,0.00044383,120]
[338151340,1726315651438,-500.0,0.00044383,120]
[338151341,1726315651474,-500.0,0.00044383,20]
[338151342,1726315651511,-500.0,0.00044383,120]
[338151343,1726315651546,-500.0,0.00044383,120]
[338151344,1726315651581,-500.0,0.00044383,120]
[338151345,1726315651618,-1000.0,0.00044383,120]
[338151346,1726315651655,-500.0,0.00044383,120]
[338151347,1726315651695,-500.0,0.00044383,120]
[338151348,1726315651735,-500.0,0.00044383,120]
[338151349,1726315651774,-500.0,0.00044383,120]
[338151350,1726315651813,-500.0,0.00044383,120]
[338151351,1726315651852,-500.0,0.00044383,120]
[338151352,1726315651889,-500.0,0.00044383,120]
[338151353,1726315651928,-1018.7766511,0.00044383,120]
[338151354,1726315651973,-500.0,0.00044383,120]
[338151355,1726315652016,-500.0,0.00044383,120]
[338151356,1726315652058,-1153.99,0.00044383,120]
[338151357,1726315652102,-934.46,0.00044383,120]
[338151358,1726315652144,-500.0,0.00044383,120]
[338151359,1726315652184,-500.0,0.00044383,120]
[338151360,1726315652225,-500.0,0.00044383,120]
[338151361,1726315652264,-500.0,0.00044383,120]
[338151362,1726315652305,-500.0,0.00044383,120]
[338151363,1726315652346,-500.0,0.00044383,120]
[338151364,1726315652385,-500.0,0.00044383,120]
[338151365,1726315652425,-500.0,0.00044383,120]
[338151366,1726315652462,-891.94,0.00044383,120]
[338151367,1726315652500,-500.0,0.00044383,120]
[338151368,1726315652537,-1000.0,0.00044383,118]
[338151369,1726315652575,-275.4195224,0.00044383,120]
[338151370,1726315652611,-500.0,0.00044383,120]
[338151371,1726315652654,-505.37519992,0.00044383,120]
[338151372,1726315652697,-500.0,0.00044383,120]
[338151373,1726315652740,-500.0,0.00044383,120]
[338151374,1726315652780,-500.0,0.00044383,120]
[338151375,1726315652820,-500.0,0.00044383,120]
[338151376,1726315652862,-500.0,0.00044383,120]
[338151377,1726315652901,-500.0,0.00044383,120]
[338151378,1726315652941,-500.0,0.00044383,120]
[338151379,1726315652981,-500.0,0.00044383,120]
[338151380,1726315653024,-500.0,0.00044383,120]
[338151381,1726315653069,-500.0,0.00044383,120]
[338151382,1726315653118,-500.0,0.00044383,120]
[338151383,1726315653163,-500.0,0.00044383,120]
[338151384,1726315653206,-695.7,0.00044383,120]
[338151385,1726315653249,-583.26,0.00044383,120]
[338151386,1726315653290,-500.0,0.00044383,120]
[338151387,1726315653330,-500.0,0.00044383,120]
[338151388,1726315653372,-986.21,0.00044383,120]
[338151389,1726315653414,-2943.43,0.00044383,120]
[338151390,1726315653455,-500.0,0.00044383,120]
[338151391,1726315653497,-500.0,0.00044383,120]
[338151392,1726315653540,-500.0,0.00044383,120]
[338151393,1726315653581,-719.24,0.00044383,120]
[338151394,1726315653623,-500.0,0.00044383,120]
[338151395,1726315653667,-500.0,0.00044383,120]
[338151396,1726315653713,-500.0,0.00044383,120]
[338151397,1726315653759,-504.89,0.00044383,120]
[338151398,1726315653802,-500.0,0.00044383,120]
[338151399,1726315653844,-500.0,0.00044383,120]
[338151400,1726315653888,-500.0,0.00044383,120]
[338151401,1726315653930,-500.0,0.00044383,120]
[338151402,1726315653974,-547.23,0.00044383,120]
[338151403,1726315654016,-500.0,0.00044383,120]
[338151404,1726315654056,-1197.1,0.00044383,120]
[338151405,1726315654100,-500.0,0.00044383,120]
[338151406,1726315654142,-888.18,0.00044383,120]
[338151407,1726315654182,-841.08,0.00044383,120]
[338151408,1726315654223,-178.16888276,0.00044383,120]
[338151409,1726315654443,-500.0,0.00044383,120]
[338151410,1726315654488,-500.0,0.00044383,120]
[338151411,1726315654533,-500.0,0.00044383,120]
[338151412,1726315654576,-500.0,0.00044383,120]
[338151413,1726315654619,-500.0,0.00044383,120]
[338151414,1726315654667,-500.0,0.00044383,120]
[338151415,1726315654710,-500.0,0.00044383,120]
[338151416,1726315654754,-500.0,0.00044383,120]
[338151417,1726315654798,-500.0,0.00044383,120]
[338151418,1726315654839,-500.0,0.00044383,120]
[338151419,1726315654882,-500.0,0.00044383,120]
[338151420,1726315654924,-500.0,0.00044383,120]
[338151421,1726315654968,-2696.63,0.00044383,120]
[338151422,1726315655014,-500.0,0.00044383,30]
[338151423,1726315655059,-500.0,0.00044383,120]
[338151424,1726315655103,-1893.53,0.00044383,120]
[338151425,1726315655145,-500.0,0.00044383,30]
[338151426,1726315655186,-500.0,0.00044383,120]
[338151427,1726315655227,-500.0,0.00044383,120]
[338151428,1726315655266,-500.0,0.00044383,120]
[338151429,1726315655305,-500.0,0.00044383,120]
[338151430,1726315655340,-454.50582054,0.00044383,120]
[338151431,1726315655377,-500.0,0.00044383,120]
[338151432,1726315655418,-1024.98,0.00044383,120]
[338151433,1726315655460,-500.0,0.00044383,120]
[338151434,1726315655499,-1176.98,0.00044383,120]
[338151435,1726315655536,-500.0,0.00044383,120]
[338151436,1726315655573,-500.0,0.00044383,120]
[338151437,1726315655611,-500.0,0.00044383,120]
[338151438,1726315655650,-506.0,0.00044383,120]
[338151439,1726315655690,-500.0,0.00044383,120]
[338151440,1726315655728,-792.81,0.00044383,120]
[338151441,1726315655766,-500.0,0.00044383,120]
[338151442,1726315655804,-500.0,0.00044383,120]
[338151443,1726315655843,-500.0,0.00044383,120]
[338151444,1726315655881,-500.0,0.00044383,120]
[338151445,1726315655920,-500.0,0.00044383,120]
[338151446,1726315655959,-500.0,0.00044383,120]
[338151447,1726315655997,-500.0,0.00044383,120]
[338151448,1726315656037,-500.0,0.00044383,120]
[338151449,1726315656075,-500.0,0.00044383,120]
[338151450,1726315656116,-500.0,0.00044383,120]
[338151451,1726315656158,-500.0,0.00044383,120]
[338151452,1726315656200,-288.14,0.00044383,120]
[338151453,1726315656239,-5000.0,0.00044383,120]
[338151454,1726315656277,-1578.4,0.00044383,120]
[338151455,1726315656315,-500.0,0.00044383,120]
[338151456,1726315656363,-500.0,0.00044383,120]
[338151457,1726315656400,-500.0,0.00044383,120]
[338151458,1726315656438,-500.0,0.00044383,120]
[338151459,1726315656476,-869.73,0.00044383,120]
[338151460,1726315656516,-500.0,0.00044383,120]
[338151461,1726315656552,-500.0,0.00044383,120]
[338151462,1726315656590,-219.37392126,0.00044383,120]
[338151463,1726315656625,-1790.23,0.00044383,120]
[338151464,1726315656664,-280.47730699,0.00044383,120]
[338151465,1726315656702,-500.0,0.00044383,120]
[338151466,1726315656740,-1000.0,0.00044383,90]
[338151467,1726315656778,-411.58786788,0.00044383,120]
[338151468,1726315656816,-500.0,0.00044383,120]
[338151469,1726315656853,-1343.37,0.00044383,120]
[338151470,1726315656889,-500.0,0.00044383,120]
[338151471,1726315656925,-500.0,0.00044383,120]
[338151472,1726315656960,-677.79,0.00044383,120]
[338151473,1726315656996,-1313.87,0.00044383,120]
[338151474,1726315657033,-1028.51,0.00044383,120]
[338151475,1726315657069,-500.0,0.00044383,120]
[338151476,1726315657107,-500.0,0.00044383,120]
[338151477,1726315657145,-500.0,0.00044383,120]
[338151478,1726315657184,-744.34,0.00044383,120]
[338151479,1726315657223,-596.19,0.00044383,120]
[338151480,1726315657263,-913.71,0.00044383,120]
[338151481,1726315657301,-500.0,0.00044383,120]
[338151482,1726315657336,-500.0,0.00044383,120]
[338151483,1726315657371,-500.0,0.00044383,120]
[338151484,1726315657408,-575.54,0.00044383,120]
[338151485,1726315657446,-498.0,0.00044383,120]
[338151486,1726315657484,-606.71,0.00044383,120]
[338151487,1726315657520,-513.4,0.00044383,120]
[338151488,1726315657557,-856.2,0.00044383,120]
[338151489,1726315657593,-3601.58,0.00044383,120]
[338151490,1726315657630,-500.0,0.00044383,120]
[338151491,1726315657669,-546.15,0.00044383,120]
[338151492,1726315657710,-500.0,0.00044383,120]
[338151493,1726315657750,-500.0,0.00044383,120]
[338151494,1726315657792,-3441.33,0.00044383,120]
[338151495,1726315657834,-1189.71,0.00044383,120]
[338151496,1726315657873,-500.0,0.00044383,120]
[338151497,1726315657912,-504.83,0.00044383,120]
[338151498,1726315657951,-1134.08,0.00044383,120]
[338151499,1726315657989,-500.0,0.00044383,120]
[338151500,1726315658027,-2376.0,0.00044383,120]
[338151501,1726315658063,-500.0,0.00044383,120]
[338151502,1726315658099,-509.49806679,0.00044383,120]
[338151503,1726315658136,-600.15,0.00044383,120]
[338151504,1726315658173,-1889.31,0.00044383,120]
[338151505,1726315658214,-1048.01,0.00044383,120]
[338151506,1726315658251,-836.73,0.00044383,120]
[338151507,1726315658289,-568.42,0.00044383,120]
[338151508,1726315658326,-500.0,0.00044383,120]
[338151509,1726315658364,-1159.53,0.00044383,120]
[338151510,1726315658400,-1381.94,0.00044383,120]
[338151511,1726315658439,-3047.52,0.00044383,120]
[338151512,1726315658477,-2012.22,0.00044383,120]
[338151513,1726315658694,-2147.05,0.00044383,120]
[338151514,1726315658741,-500.0,0.00044383,120]
[338151515,1726315658788,-1687.72,0.00044383,120]
[338151516,1726315658835,-3863.8,0.00044383,120]
[338151517,1726315658875,-500.0,0.00044383,120]
[338151518,1726315658918,-500.0,0.00044383,120]
[338151519,1726315658958,-14732.11,0.00044383,120]
[338151520,1726315658999,-500.0,0.00044383,120]
[338151521,1726315659043,-1613.53,0.00044383,120]
[338151522,1726315659083,-2943.31,0.00044383,120]
[338151523,1726315659126,-500.0,0.00044383,120]
[338151524,1726315659168,-500.0,0.00044383,120]
[338151525,1726315659212,-90472.43,0.00044383,120]
[338151526,1726315659254,-551.49,0.00044383,120]
[338151527,1726315659299,-4191.59,0.00044383,120]
[338151528,1726315659341,-500.0,0.00044383,120]
[338151529,1726315659383,-516.0238122,0.00044383,120]
[338151530,1726315659426,-544.99,0.00044383,120]
[338151531,1726315659467,-500.0,0.00044383,120]
[338151532,1726315659507,-6128.97,0.00044383,120]
[338151533,1726315659549,-500.0,0.00044383,120]
[338151534,1726315659590,-639.6436618,0.00044383,120]
[338151535,1726315659630,-500.0,0.00044383,120]
[338151536,1726315659674,-500.0,0.00044383,120]
[338151537,1726315659716,-18509.41,0.00044383,120]
[338151538,1726315659760,-1982.33,0.00044383,120]
[338151539,1726315659800,-500.0,0.00044383,120]
[338151540,1726315659840,-2557.41,0.00044383,18]
[338151541,1726315659881,-500.0,0.00044383,120]
[338151542,1726315659920,-500.0,0.00044383,120]
[338151543,1726315659959,-631.17,0.00044383,120]
[338151544,1726315659996,-500.0,0.00044383,120]
[338151545,1726315660035,-500.0,0.00044383,21]
[338151546,1726315660072,-500.0,0.00044383,120]
[338151547,1726315660111,-500.0,0.00044383,120]
[338151548,1726315660149,-500.0,0.00044383,30]
[338151549,1726315660188,-500.0,0.00044383,120]
[338151550,1726315660226,-500.0,0.00044383,120]
[338151551,1726315660262,-500.0,0.00044383,120]
[338151552,1726315660300,-9598.56,0.00044383,120]
[338151553,1726315660338,-500.0,0.00044383,120]
[338151554,1726315660376,-971.21,0.00044383,120]
[338151555,1726315660415,-2421.45,0.00044383,120]
[338151556,1726315660456,-500.0,0.00044383,120]
[338151557,1726315660493,-500.0,0.00044383,120]
[338151558,1726315660531,-500.0,0.00044383,120]
[338151559,1726315660569,-4076.64,0.00044383,120]
[338151560,1726315660609,-500.0,0.00044383,120]
[338151561,1726315660648,-934.58,0.00044383,120]
[338151562,1726315660688,-500.0,0.00044383,120]
[338151563,1726315660726,-554.17,0.00044383,120]
[338151564,1726315660769,-9183.3,0.00044383,120]
[338151565,1726315660810,-500.0,0.00044383,120]
[338151566,1726315660852,-901.52,0.00044383,120]
[338151567,1726315660893,-2020.46,0.00044383,120]
[338151568,1726315660937,-927.09,0.00044383,120]
[338151569,1726315660978,-666.08,0.00044383,120]
[338151570,1726315661017,-500.0,0.00044383,120]
[338151571,1726315661056,-3763.01,0.00044383,120]
[338151572,1726315661095,-500.0,0.00044383,120]
[338151573,1726315661132,-500.0,0.00044383,120]
[338151574,1726315661169,-521.5,0.00044383,120]
[338151575,1726315661209,-500.0,0.00044383,120]
[338151576,1726315661248,-4211.93,0.00044383,120]
[338151577,1726315661284,-500.0,0.00044383,120]
[338151578,1726315661320,-1652.28,0.00044383,120]
[338151579,1726315661357,-16528.59,0.00044383,120]
[338151580,1726315661392,-1887.03,0.00044383,120]
[338151581,1726315661429,-34116.80088092,0.00044383,120]
[338151582,1726315662133,500.0,5e-05,2]
[338151621,1726315837907,-300.0,0.00012673,2]
[338151622,1726315837917,-1649.88037749,0.00012674,2]
[338151625,1726315839740,-9935.75085011,0.00012674,2]
[338151626,1726315839750,-6539.47348911,0.00013599,2]
[338151627,1726315839761,-2500.0,0.00013637,2]
[338151628,1726315839771,-2500.0,0.00013646,2]
[338151629,1726315839780,-2500.0,0.00013655,2]
[338151630,1726315839789,-2500.0,0.00013664,2]
[338151631,1726315839800,-2500.0,0.00013673,2]
[338151632,1726315839811,-2500.0,0.00013681,2]
[338151633,1726315839821,-2500.0,0.0001369,2]
[338151634,1726315839832,-10000.0,0.00013699,2]
[338151635,1726315839842,-3417.725898,0.00013699,2]
[338151636,1726315839852,-2500.0,0.00013699,2]
[338151637,1726315839865,-500.0,0.000137,2]
[338151638,1726315839876,-500.0,0.000137,2]
[338151639,1726315839886,-420.0,0.00013941,2]
[338151640,1726315839896,-903.6984407,0.00015034,2]
[338151641,1726315839905,-500.0,0.0001507,2]
[338151642,1726315839914,-1000.0,0.0001507,2]
[338151643,1726315839924,-587.0,0.00015335,2]
[338151644,1726315839934,-836.60082624,0.0001595,2]
[338151645,1726315839944,-1027.0,0.00016,2]
[338151646,1726315839953,-3000.0,0.00016,2]
[338151647,1726315839965,-151.0,0.00016,2]
[338151648,1726315839974,-151.0,0.00016,2]
[338151649,1726315839984,-1390.186818,0.00016,2]
[338151650,1726315839993,-191.5883,0.00016,2]
[338151651,1726315840003,-274.697983,0.00016,2]
[338151652,1726315840012,-274.697983,0.00016,2]
[338151653,1726315840023,-3000.0,0.0001601,2]
[338151654,1726315840033,-3000.0,0.0001602,2]
[338151655,1726315840042,-3000.0,0.0001603,2]
[338151656,1726315840052,-3000.0,0.0001604,2]
[338151657,1726315840061,-250.0,0.00016048,2]
[338151658,1726315840073,-258.4974167,0.00016048,2]
[338151659,1726315840082,-799.55309017,0.00016048,2]
[338151660,1726315840091,-799.55309017,0.00016048,2]
[338151661,1726315840101,-799.55309017,0.00016048,2]
[338151662,1726315840111,-799.55309017,0.00016048,2]
[338151663,1726315840122,-799.55309017,0.00016048,2]
[338151664,1726315840132,-799.55309017,0.00016048,2]
[338151665,1726315840142,-799.55309017,0.00016048,2]
[338151666,1726315840151,-799.55309017,0.00016048,2]
[338151667,1726315840160,-799.55309017,0.00016048,2]
[338151668,1726315840170,-799.55309017,0.00016048,2]
[338151669,1726315840180,-799.55309017,0.00016048,2]
[338151670,1726315840191,-799.55309017,0.00016048,2]
[338151671,1726315840202,-799.55309017,0.00016048,2]
[338151672,1726315840212,-799.55309017,0.00016048,2]
[338151673,1726315840222,-799.55309017,0.00016048,2]
[338151674,1726315840231,-799.55309017,0.00016048,2]
[338151675,1726315840242,-799.55309017,0.00016048,2]
[338151676,1726315840251,-799.55309017,0.00016048,2]
[338151677,1726315840263,-799.55309017,0.00016048,2]
[338151678,1726315840274,-799.55309017,0.00016048,2]
[338151679,1726315840284,-799.55309017,0.00016048,2]
[338151680,1726315840294,-799.55309017,0.00016048,2]
[338151681,1726315840302,-799.55309017,0.00016048,2]
[338151682,1726315840312,-799.55309017,0.00016048,2]
[338151683,1726315840321,-799.55309017,0.00016048,2]
[338151684,1726315840331,-799.55309017,0.00016048,2]
[338151685,1726315840341,-799.55309017,0.00016048,2]
[338151686,1726315840351,-799.55309017,0.00016048,2]
[338151687,1726315840361,-799.55309017,0.00016048,2]
[338151688,1726315840370,-799.55309017,0.00016048,2]
[338151689,1726315840380,-799.55309017,0.00016048,2]
[338151690,1726315840391,-799.55309017,0.00016048,2]
[338151691,1726315840400,-799.55309017,0.00016048,2]
[338151692,1726315840409,-799.55309017,0.00016048,2]
[338151693,1726315840420,-799.55309017,0.00016048,2]
[338151694,1726315840431,-799.55309017,0.00016048,2]
[338151695,1726315840441,-799.55309017,0.00016048,2]
[338151696,1726315840452,-799.55309017,0.00016048,2]
[338151697,1726315840465,-799.55309017,0.00016048,2]
[338151698,1726315840476,-777.13703175,0.00016048,2]
[338151699,1726315840490,-22.41605842,0.00016048,2]
[338151700,1726315840500,-799.55309017,0.00016048,2]
[338151701,1726315840512,-799.55309017,0.00016048,2]
[338151702,1726315840521,-799.55309017,0.00016048,2]
[338151703,1726315840530,-799.55309017,0.00016048,2]
[338151704,1726315840541,-799.55309017,0.00016048,2]
[338151705,1726315840550,-799.55309017,0.00016048,2]
[338151706,1726315840560,-799.55309017,0.00016048,2]
[338151707,1726315840569,-799.55309017,0.00016048,2]
[338151708,1726315840578,-799.55309017,0.00016048,2]
[338151709,1726315840587,-799.55309017,0.00016048,2]
[338151710,1726315840597,-799.55309017,0.00016048,2]
[338151711,1726315840607,-799.55309017,0.00016048,2]
[338151712,1726315840616,-799.55309017,0.00016048,2]
[338151713,1726315840625,-799.55309017,0.00016048,2]
[338151714,1726315840634,-799.55309017,0.00016048,2]
[338151715,1726315840643,-799.55309017,0.00016048,2]
[338151716,1726315840652,-799.55309017,0.00016048,2]
[338151717,1726315840662,-799.55309017,0.00016048,2]
[338151718,1726315840672,-799.55309017,0.00016048,2]
[338151719,1726315840681,-799.55309017,0.00016048,2]
[338151720,1726315840690,-799.55309017,0.00016048,2]
[338151721,1726315840700,-799.55309017,0.00016048,2]
[338151722,1726315840709,-799.55309017,0.00016048,2]
[338151723,1726315840720,-799.55309017,0.00016048,2]
[338151724,1726315840731,-5956.1697775,0.00016049,2]
[338151725,1726315840743,-1740.95454585,0.00016049,2]
[338151737,1726315842858,-6118.8732497,0.00016049,2]
[338151742,1726315845997,-44509.49,0.00016049,2]
[338151743,1726315846009,-1193.42,0.00016049,2]
[338151757,1726316425776,809.05,0.00010959,2]
[338151758,1726316481442,1000.0,0.00028,120]
[338151761,1726316727986,500.0,0.00028,120]
[338151764,1726316896436,38430.38571736,0.00028,120]
[338151767,1726316925606,235.37688518,0.00027,120]
[338151786,1726317031904,-1004.25000015,0.00012624,2]
[338151826,1726317037987,-2934.87874188,0.00012624,2]
[338151856,1726317039995,-20950.87125797,0.00012624,2]
[338151858,1726317040004,-5000.0,0.00013,2]
[338151860,1726317040014,-903.6984407,0.00013598,2]
[338151862,1726317040023,-300.0,0.00013598,2]
[338151863,1726317040032,-5174.61898477,0.00013599,2]
[338151865,1726317040043,-50348.84667157,0.00013599,2]
[338151866,1726317040053,-2385.889862,0.00013599,2]
[338151867,1726317040062,-158.834459,0.00013699,2]
[338151868,1726317040071,-1875.016001,0.00013699,2]
[338151870,1726317040080,-4853.2017785,0.00013923,2]
[338151871,1726317040090,-5000.0,0.00014,2]
[338151872,1726317040101,-5000.0,0.00014,2]
[338151873,1726317040110,-10545.03477416,0.00014,2]
[338151874,1726317040119,-170.5627919,0.00014023,2]
[338151875,1726317040128,-1771.7972094,0.00014084,2]
[338151876,1726317040138,-7375.14231418,0.000149,2]
[338151877,1726317040147,-420.0,0.00014957,2]
[338151878,1726317040156,-5000.0,0.00015,2]
[338151879,1726317040166,-836.60082624,0.00015908,2]
[338151880,1726317040176,-391.94801518,0.00015908,2]
[338152417,1726317107064,-29.14468097,0.00015908,2]
[338152419,1726317107074,-421.09269613,0.00015909,2]
[338152420,1726317107084,-421.09269613,0.00015909,2]
[338152421,1726317107093,-421.09269613,0.0001591,2]
[338152422,1726317107103,-421.09269613,0.0001591,2]
[338152423,1726317107117,-1000.0,0.0001593,2]
[338152425,1726317107126,-1000.0,0.00015938,2]
[338152426,1726317107135,-1000.0,0.00015949,2]
[338152427,1726317107145,-3000.0,0.00016,2]
[338152428,1726317107156,-5000.0,0.00016,2]
[338152429,1726317107167,-150.112233,0.00016,2]
[338152431,1726317107177,-150.112233,0.00016,2]
[338152432,1726317107187,-150.112233,0.00016,2]
[338152433,1726317107198,-150.112233,0.00016,2]
[338152434,1726317107208,-150.112233,0.00016,2]
[338152435,1726317107217,-150.112233,0.00016,2]
[338152436,1726317107227,-150.112233,0.00016,2]
[338152438,1726317107236,-500.0,0.00016008,2]
[338152439,1726317107246,-475.11279843,0.00016008,2]
[338152440,1726317107257,-236.70634056,0.00016008,2]
[338152441,1726317107266,-500.0,0.00016008,2]
[338152442,1726317107279,-500.0,0.00016008,2]
[338152444,1726317107288,-568.20508057,0.00016008,2]
[338152445,1726317107298,-158.42380286,0.00016008,2]
[338152446,1726317107307,-500.0,0.00016008,2]
[338152447,1726317107317,-500.0,0.00016008,2]
[338152448,1726317107326,-500.0,0.00016008,2]
[338152450,1726317107336,-362.34065017,0.00016008,2]
[338152451,1726317107345,-500.0,0.00016008,2]
[338152452,1726317107355,-500.0,0.00016008,2]
[338152453,1726317107364,-500.0,0.00016008,2]
[338152454,1726317107374,-500.0,0.00016008,2]
[338152456,1726317107383,-500.0,0.00016008,2]
[338152457,1726317107392,-564.63824547,0.00016008,2]
[338152458,1726317107401,-250.0,0.00016008,2]
[338152459,1726317107412,-564.63824547,0.00016008,2]
[338152460,1726317107421,-564.63824547,0.00016008,2]
[338152462,1726317107430,-564.63824547,0.00016008,2]
[338152463,1726317107440,-258.4974167,0.00016008,2]
[338152464,1726317107449,-564.63824547,0.00016008,2]
[338152465,1726317107458,-564.63824547,0.00016008,2]
[338152466,1726317107468,-564.63824547,0.00016008,2]
[338152468,1726317107477,-564.63824547,0.00016008,2]
[338152469,1726317107486,-564.63824547,0.00016008,2]
[338152470,1726317107495,-564.63824547,0.00016008,2]
[338152471,1726317107504,-564.63824547,0.00016008,2]
[338152472,1726317107513,-564.63824547,0.00016008,2]
[338152473,1726317107522,-564.63824547,0.00016008,2]
[338152475,1726317107531,-564.63824547,0.00016008,2]
[338152476,1726317107540,-564.63824547,0.00016008,2]
[338152477,1726317107549,-564.63824547,0.00016008,2]
[338152478,1726317107558,-564.63824547,0.00016008,2]
[338152479,1726317107567,-564.63824547,0.00016008,2]
[338152481,1726317107577,-564.63824547,0.00016008,2]
[338152482,1726317107586,-564.63824547,0.00016008,2]
[338152483,1726317107595,-564.63824547,0.00016008,2]
[338152484,1726317107604,-564.63824547,0.00016008,2]
[338152485,1726317107614,-564.63824547,0.00016008,2]
[338152486,1726317107623,-564.63824547,0.00016008,2]
[338152487,1726317107632,-564.63824547,0.00016008,2]
[338152489,1726317107642,-564.63824547,0.00016008,2]
[338152490,1726317107652,-564.63824547,0.00016008,2]
[338152491,1726317107662,-564.63824547,0.00016008,2]
[338152492,1726317107672,-564.63824547,0.00016008,2]
[338152493,1726317107681,-564.63824547,0.00016008,2]
[338152495,1726317107690,-564.63824547,0.00016008,2]
[338152496,1726317107699,-564.63824547,0.00016008,2]
[338152497,1726317107708,-564.63824547,0.00016008,2]
[338152498,1726317107717,-564.63824547,0.00016008,2]
[338152499,1726317107726,-564.63824547,0.00016008,2]
[338152501,1726317107736,-564.63824547,0.00016008,2]
[338152502,1726317107745,-564.63824547,0.00016008,2]
[338152503,1726317107754,-564.63824547,0.00016008,2]
[338152504,1726317107764,-564.63824547,0.00016008,2]
[338152505,1726317107774,-564.63824547,0.00016008,2]
[338152507,1726317107783,-564.63824547,0.00016008,2]
[338152508,1726317107792,-564.63824547,0.00016008,2]
[338152509,1726317107802,-564.63824547,0.00016008,2]
[338152510,1726317107811,-564.63824547,0.00016008,2]
[338152511,1726317107821,-564.63824547,0.00016008,2]
[338152513,1726317107831,-564.63824547,0.00016008,2]
[338152514,1726317107841,-564.63824547,0.00016008,2]
[338152515,1726317107850,-564.63824547,0.00016008,2]
[338152516,1726317107859,-564.63824547,0.00016008,2]
[338152517,1726317107868,-564.63824547,0.00016008,2]
[338152519,1726317107877,-564.63824547,0.00016008,2]
[338152520,1726317107886,-564.63824547,0.00016008,2]
[338152521,1726317107896,-564.63824547,0.00016008,2]
[338152522,1726317107905,-564.63824547,0.00016008,2]
[338152523,1726317107920,-564.63824547,0.00016008,2]
[338152525,1726317107930,-564.63824547,0.00016008,2]
[338152526,1726317107939,-564.63824547,0.00016008,2]
[338152527,1726317107948,-564.63824547,0.00016008,2]
[338152528,1726317107957,-564.63824547,0.00016008,2]
[338152529,1726317107966,-564.63824547,0.00016008,2]
[338152530,1726317107975,-564.63824547,0.00016008,2]
[338152532,1726317107984,-564.63824547,0.00016008,2]
[338152533,1726317107993,-564.63824547,0.00016008,2]
[338152534,1726317108002,-1251.1393503,0.00016008,2]
[338152535,1726317108011,-1251.1393503,0.00016008,2]
[338152536,1726317108020,-1251.1393503,0.00016008,2]
[338152538,1726317108030,-1251.1393503,0.00016008,2]
[338152539,1726317108039,-1251.1393503,0.00016008,2]
[338152540,1726317108048,-1251.1393503,0.00016008,2]
[338152541,1726317108057,-1251.1393503,0.00016008,2]
[338152542,1726317108066,-1251.1393503,0.00016008,2]
[338152544,1726317108076,-1251.1393503,0.00016008,2]
[338152545,1726317108085,-1251.1393503,0.00016008,2]
[338152546,1726317108095,-1251.1393503,0.00016008,2]
[338152547,1726317108104,-1251.1393503,0.00016008,2]
[338152548,1726317108116,-1251.1393503,0.00016008,2]
[338152550,1726317108126,-1251.1393503,0.00016008,2]
[338152551,1726317108136,-1251.1393503,0.00016008,2]
[338152552,1726317108145,-1251.1393503,0.00016008,2]
[338152553,1726317108155,-1251.1393503,0.00016008,2]
[338152554,1726317108165,-1251.1393503,0.00016008,2]
[338152556,1726317108176,-1251.1393503,0.00016008,2]
[338152557,1726317108185,-1251.1393503,0.00016008,2]
[338152558,1726317108195,-1251.1393503,0.00016008,2]
[338152559,1726317108205,-1251.1393503,0.00016008,2]